bitfinex-derivatives/quotes_SOLF0:USTF0_20260114
["timestamp","ask_amount","ask_price","bid_price","bid_amount"]
[1768416735589,14.03827873,146.34,146.26,13.72936047]
[1768416735992,6.1503,146.35,146.26,13.72936047]
[1768416736589,25.53526042,146.37,146.27,13.72936047]
[1768416737399,2.09324067,146.35,146.27,13.72936047]
[1768416737597,2.09324067,146.35,146.27,19.88286047]
[1768416738290,2.09324067,146.35,146.28,13.72936047]
[1768416738691,6.1499,146.36,146.28,13.72936047]
[1768416738993,2.09324067,146.35,146.28,13.72936047]
[1768416739596,8.24354067,146.35,146.28,13.72936047]
[1768416740691,2.09324067,146.33,146.25,14.0271967]
[1768416741091,15.87863098,146.33,146.25,14.0271967]
[1768416741290,13.78539031,146.31,146.22,14.0271967]
[1768416741699,3.27315136,146.3,146.22,14.0271967]
[1768416741898,6.1529,146.29,146.22,14.0271967]
[1768416743199,6.1532,146.28,146.22,14.0271967]
[1768416743902,19.93809031,146.3,146.22,14.0271967]
[1768416745498,13.78539031,146.33,146.24,14.0271967]
[1768416745802,97.83854167,146.36,146.24,14.0271967]
[1768416746106,17.05854167,146.36,146.24,14.0271967]
[1768416747006,6.1508,146.34,146.26,14.0271967]
[1768416750008,6.1508,146.34,146.26,20.1810967]
[1768416750200,6.1508,146.34,146.27,14.0271967]
[1768416750796,13.78539031,146.36,146.28,14.0271967]
[1768416751000,17.05854167,146.38,146.28,14.0271967]
[1768416752908,6.1497,146.37,146.29,14.0271967]
[1768416753698,19.93509031,146.37,146.29,14.0271967]
[1768416753902,6.1499,146.36,146.29,14.0271967]
[1768416754203,13.78539031,146.37,146.3,14.0271967]
[1768416755013,19.93489031,146.37,146.3,14.0271967]
[1768416755211,13.78539031,146.37,146.27,20.1804967]
[1768416755411,17.05854167,146.36,146.27,14.0271967]
[1768416756814,6.1512,146.33,146.27,14.0271967]
[1768416757507,19.93589031,146.35,146.27,14.0271967]
[1768416757911,3.27315136,146.36,146.27,14.0271967]
[1768416758218,9.42305136,146.36,146.27,20.1804967]
[1768416758412,9.42305136,146.36,146.28,14.0271967]
[1768416759416,9.42305136,146.36,146.23,179.77595136]
[1768416759417,6.1493,146.38,146.3,14.0271967]
[1768416759614,17.05854167,146.41,146.3,14.0271967]
[1768416760113,13.78539031,146.38,146.3,14.0271967]
[1768416761817,19.93499031,146.37,146.3,14.0271967]
[1768416762222,17.05854167,146.37,146.27,14.0271967]
[1768416762615,6.15,146.36,146.28,14.0271967]
[1768416763218,17.05854167,146.37,146.28,20.1801967]
[1768416763818,6.1499,146.36,146.28,20.1801967]
[1768416764322,6.1499,146.36,146.28,14.0271967]
[1768416764927,19.93529031,146.36,146.28,14.0271967]
[1768416765331,6.1495,146.37,146.29,14.0271967]
[1768416765926,6.1488,146.39,146.31,14.0271967]
[1768416767030,95.649,146.39,146.24,95.738]
[1768416767222,13.78539031,146.37,146.28,14.0271967]
[1768416768831,6.1499,146.36,146.28,20.1802967]
[1768416769130,6.1499,146.36,146.29,14.0271967]
[1768416769822,6.1503,146.35,146.29,14.0271967]
[1768416770319,6.1507,146.34,146.27,14.0271967]
[1768416771522,14.23476487,146.35,146.27,14.0271967]
[1768416772128,14.23476487,146.35,146.27,20.1805967]
[1768416772532,6.1507,146.34,146.27,14.0271967]
[1768416777534,20.38586487,146.33,146.25,96.11933488]
[1768416777729,20.38586487,146.33,146.26,15.37933488]
[1768416778134,6.1511,146.33,146.26,15.37933488]
[1768416778335,6.1515,146.32,146.26,15.37933488]
[1768416778528,14.23476487,146.33,146.23,15.37933488]
[1768416779435,6.1518,146.32,146.24,15.37933488]
[1768416779637,14.23476487,146.35,146.24,15.37933488]
[1768416780338,17.50791623,146.38,146.24,114.39008624]
[1768416780635,14.23476487,146.38,146.26,18.65248624]
[1768416780838,17.50791623,146.38,146.26,18.65248624]
[1768416781032,6.1498,146.36,146.29,15.37933488]
[1768416784438,14.23476487,146.34,146.26,21.53303488]
[1768416785038,14.23476487,146.34,146.27,21.53283488]
[1768416785336,6.1497,146.37,146.28,15.37933488]
[1768416786326,6.1489,146.39,146.31,15.37933488]
[1768416787543,6.149,146.38,146.31,15.37933488]
[1768416787743,14.23476487,146.4,146.31,15.37933488]
[1768416788942,6.1486,146.39,146.31,21.53113488]
[1768416791047,6.1486,146.39,146.29,3.27315136]
[1768416791048,14.23476487,146.4,146.33,15.37933488]
[1768416791744,14.23476487,146.43,146.35,15.37933488]
[1768416793746,20.38166487,146.43,146.35,21.52943488]
[1768416794940,20.38166487,146.43,146.35,15.37933488]
[1768416797258,17.50791623,146.41,146.29,15.37933488]
[1768416797550,17.50791623,146.41,146.31,15.37933488]
[1768416797949,14.23476487,146.38,146.28,15.37933488]
[1768416798246,3.27315136,146.39,146.28,15.37933488]
[1768416798247,14.23476487,146.36,146.28,15.37933488]
[1768416798653,6.1503,146.35,146.28,15.37933488]
[1768416798848,14.23476487,146.36,146.28,15.37933488]
[1768416799052,14.23476487,146.34,146.24,15.37933488]
[1768416799240,6.1516,146.32,146.25,15.37933488]
[1768416799953,20.38636487,146.32,146.25,15.37933488]
[1768416800962,6.1521,146.31,146.23,95.8906278]
[1768416801157,14.23476487,146.32,146.24,15.1706278]
[1768416801357,95.6741,146.35,146.24,15.1706278]
[1768416801358,15.28181491,146.35,146.24,15.1706278]
[1768416802851,6.1512,146.33,146.24,21.3253278]
[1768416803158,6.1512,146.33,146.25,15.1706278]
[1768416803360,8.24509102,146.33,146.25,15.1706278]
[1768416804454,2.09389102,146.33,146.25,21.3249278]
[1768416804658,2.09389102,146.33,146.26,15.1706278]
[1768416808060,6.1507,146.34,146.26,15.1706278]
[1768416808261,2.09389102,146.33,146.26,15.1706278]
[1768416808758,17.37570593,146.33,146.23,102.0455278]
[1768416808965,17.37570593,146.31,146.23,95.8906278]
[1768416809177,15.28181491,146.34,146.24,15.1706278]
[1768416809354,6.1513,146.33,146.25,15.1706278]
[1768416809756,17.37570593,146.34,146.25,15.1706278]
[1768416811560,6.1504,146.35,146.26,17.26451882]
[1768416811756,6.1496,146.37,146.29,15.1706278]
[1768416812155,8.24349102,146.37,146.29,15.1706278]
[1768416813357,6.1499,146.36,146.29,15.1706278]
[1768416813561,17.37570593,146.37,146.29,15.1706278]
[1768416814767,6.1503,146.35,146.29,15.1706278]
[1768416815466,6.1507,146.34,146.27,15.1706278]
[1768416820257,2.09389102,146.33,146.24,23.41901882]
[1768416820466,17.37570593,146.33,146.25,15.1706278]
[1768416820968,2.09389102,146.31,146.25,15.1706278]
[1768416821764,6.1524,146.3,146.25,15.1706278]
[1768416822076,17.37570593,146.33,146.25,15.1706278]
[1768416822661,6.1517,146.32,146.26,15.1706278]
[1768416822971,2.09389102,146.36,146.29,15.1706278]
[1768416823766,8.24369102,146.36,146.29,15.1706278]
[1768416823967,2.09389102,146.36,146.29,15.1706278]
[1768416825165,6.1496,146.37,146.3,21.3229278]
[1768416825362,2.09389102,146.38,146.31,15.1706278]
[1768416826064,6.1494,146.37,146.31,15.1706278]
[1768416829081,8.24279102,146.39,146.31,15.1706278]
[1768416830774,8.24279102,146.39,146.32,14.39319694]
[1768416831170,6.1489,146.39,146.32,14.39319694]
[1768416832579,98.11570593,146.4,146.32,14.39319694]
[1768416832779,82.83389102,146.4,146.32,16.48708796]
[1768416832971,2.09389102,146.42,146.32,16.48708796]
[1768416833569,6.148,146.41,146.34,14.39319694]
[1768416836682,6.148,146.41,146.32,14.39319694]
[1768416836683,16.96285417,146.41,146.32,14.39319694]
[1768416836881,2.09389102,146.4,146.32,14.39319694]
[1768416837975,6.1486,146.39,146.32,14.39319694]
[1768416838176,16.96285417,146.4,146.3,2.09389102]
[1768416838379,16.96285417,146.38,146.3,14.39319694]
[1768416839773,6.1494,146.37,146.3,14.39319694]
[1768416839980,21.01836315,146.37,146.3,14.39319694]
[1768416840178,14.86896315,146.37,146.3,14.39319694]
[1768416840377,14.86896315,146.37,146.28,82.81389102]
[1768416840378,23.11275417,146.36,146.28,95.11319694]
[1768416840575,23.11275417,146.36,146.28,14.39319694]
[1768416841279,6.1499,146.36,146.28,16.48708796]
[1768416841480,6.1492,146.38,146.3,14.39319694]
[1768416841684,16.96285417,146.38,146.3,14.39319694]
[1768416842683,23.11285417,146.36,146.28,14.39319694]
[1768416843075,16.96285417,146.36,146.28,14.39319694]
[1768416843971,6.1508,146.34,146.28,14.39319694]
[1768416844281,16.96285417,146.34,146.25,14.39319694]
[1768416844784,21.01996315,146.34,146.27,14.39319694]
[1768416846189,2.09389102,146.35,146.28,14.39319694]
[1768416846380,16.96285417,146.35,146.28,14.39319694]
[1768416846981,14.86896315,146.35,146.28,14.39319694]
[1768416847177,16.96285417,146.35,146.28,14.39319694]
[1768416847890,6.1507,146.34,146.28,14.39319694]
[1768416848279,6.1512,146.33,146.26,14.39319694]
[1768416848886,14.86896315,146.34,146.27,14.39319694]
[1768416849087,2.09389102,146.35,146.27,14.39319694]
[1768416849588,6.1511,146.33,146.27,14.39319694]
[1768416849789,23.11395417,146.33,146.27,14.39319694]
[1768416850192,21.02006315,146.33,146.27,14.39319694]
[1768416850495,2.09389102,146.34,146.27,14.39319694]
[1768416851188,6.1512,146.33,146.27,14.39319694]
[1768416852591,6.1515,146.32,146.27,14.39319694]
[1768416852783,6.1515,146.32,146.25,14.39319694]
[1768416852989,23.11475417,146.32,146.25,14.39319694]
[1768416853189,16.96285417,146.32,146.25,14.39319694]
[1768416853585,6.1518,146.32,146.25,14.39319694]
[1768416853792,2.09389102,146.34,146.25,16.48708796]
[1768416854394,14.86896315,146.35,146.25,16.48708796]
[1768416855192,6.1506,146.34,146.26,14.39319694]
[1768416855894,6.1511,146.33,146.26,20.54709694]
[1768416856296,16.96285417,146.34,146.26,14.39319694]
[1768416856497,6.152,146.31,146.26,14.39319694]
[1768416857195,8.24559102,146.32,146.26,14.39319694]
[1768416857894,6.1519,146.31,146.26,14.39319694]
[1768416859306,6.1514,146.33,146.26,14.39319694]
[1768416859502,14.86896315,146.37,146.26,16.48708796]
[1768416859798,16.96285417,146.37,146.27,14.39319694]
[1768416860503,6.1507,146.34,146.27,14.39319694]
[1768416860703,16.80461417,146.35,146.27,14.39319694]
[1768416861912,6.1511,146.33,146.27,14.39319694]
[1768416865410,6.1515,146.32,146.27,14.39319694]
[1768416865713,17.98189215,146.35,146.27,14.39319694]
[1768416866910,6.1518,146.32,146.27,14.39319694]
[1768416868210,6.1518,146.32,146.23,6.1549]
[1768416868412,14.71072315,146.32,146.23,20.06946927]
[1768416868913,6.1524,146.3,146.23,13.91456927]
[1768416869103,14.71072315,146.32,146.23,13.91456927]
[1768416870316,6.1522,146.31,146.24,13.91456927]
[1768416871303,14.71072315,146.29,146.21,20.07046927]
[1768416872713,14.71072315,146.29,146.21,13.91456927]
[1768416873717,6.1534,146.28,146.21,13.91456927]
[1768416874721,6.1536,146.27,146.21,13.91456927]
[1768416876414,14.71072315,146.32,146.22,13.91456927]
[1768416876919,6.1523,146.3,146.24,13.91456927]
[1768416884023,14.71072315,146.3,146.22,13.91456927]
[1768416884424,6.1519,146.32,146.24,13.91456927]
[1768416884918,14.71072315,146.35,146.24,13.91456927]
[1768416885129,6.1511,146.33,146.26,13.91456927]
[1768416885515,6.1497,146.37,146.28,13.91456927]
[1768416885719,14.71072315,146.37,146.28,13.91456927]
[1768416886024,6.1498,146.36,146.28,13.91456927]
[1768416887422,20.86052315,146.36,146.28,13.91456927]
[1768416889321,6.1493,146.38,146.29,13.91456927]
[1768416889527,20.86002315,146.38,146.29,13.91456927]
[1768416889723,14.71072315,146.41,146.29,17.18573827]
[1768416890822,6.1482,146.4,146.31,6.1518]
[1768416891024,6.1482,146.4,146.32,14.40632713]
[1768416892731,14.71072315,146.41,146.33,14.40632713]
[1768416893232,80.76,146.43,146.34,14.40632713]
[1768416893424,95.61317689,146.43,146.34,14.40632713]
[1768416893925,14.85317689,146.43,146.35,20.55632713]
[1768416894426,14.85317689,146.42,146.35,14.40632713]
[1768416897035,14.85317689,146.45,146.35,14.40632713]
[1768416897936,6.1465,146.44,146.35,14.40632713]
[1768416898138,14.85317689,146.45,146.35,14.40632713]
[1768416899239,6.1466,146.44,146.35,14.40632713]
[1768416899537,14.85317689,146.44,146.35,14.40632713]
[1768416899943,6.147,146.43,146.35,14.40632713]
[1768416900742,6.1474,146.42,146.35,14.40632713]
[1768416902045,20.99997689,146.44,146.35,14.40632713]
[1768416902447,14.85317689,146.44,146.35,14.40632713]
[1768416902852,176.3354,146.47,146.35,14.40632713]
[1768416902853,110.42637689,146.5,146.38,17.67749613]
[1768416903537,6.1451,146.48,146.4,14.40632713]
[1768416904144,14.85317689,146.5,146.4,14.40632713]
[1768416904345,20.99727689,146.5,146.4,14.40632713]
[1768416904852,14.85317689,146.5,146.4,14.40632713]
[1768416905146,6.1445,146.49,146.4,14.40632713]
[1768416905448,18.12434589,146.52,146.41,14.40632713]
[1768416905653,6.1438,146.51,146.41,14.40632713]
[1768416905851,14.85317689,146.52,146.43,14.40632713]
[1768416906053,15.90781356,146.54,146.43,14.40632713]
[1768416906256,30.76099045,146.54,146.43,14.40632713]
[1768416906454,14.85317689,146.53,146.44,14.40632713]
[1768416906662,14.85317689,146.51,146.4,14.40632713]
[1768416907453,14.85317689,146.51,146.43,14.40632713]
[1768416908259,20.99727689,146.5,146.43,14.40632713]
[1768416908954,9.414569,146.52,146.43,14.40632713]
[1768416909153,24.26774589,146.52,146.43,14.40632713]
[1768416909349,6.1434,146.52,146.43,14.40632713]
[1768416909952,30.76099045,146.54,146.45,14.40632713]
[1768416910566,14.85317689,146.53,146.45,14.40632713]
[1768416910754,14.85317689,146.53,146.42,14.40632713]
[1768416910755,6.1436,146.51,146.42,14.40632713]
[1768416911066,14.85317689,146.5,146.42,14.40632713]
[1768416911360,3.271169,146.51,146.39,20.08546908]
[1768416911361,18.12434589,146.49,146.39,34.49179621]
[1768416911662,18.12434589,146.49,146.39,14.40632713]
[1768416911966,6.1449,146.48,146.39,14.40632713]
[1768416912462,18.12434589,146.49,146.39,14.40632713]
[1768416912673,24.26884589,146.49,146.4,14.40632713]
[1768416913464,14.85317689,146.48,146.4,14.40632713]
[1768416915962,24.26794589,146.51,146.41,14.40632713]
[1768416916162,14.85317689,146.5,146.41,14.40632713]
[1768416917365,20.99717689,146.5,146.41,14.40632713]
[1768416919265,6.144,146.5,146.42,14.40632713]
[1768416920258,6.1445,146.49,146.42,14.40632713]
[1768416920457,18.12434589,146.51,146.42,14.40632713]
[1768416920667,6.1448,146.48,146.42,14.40632713]
[1768416920861,14.86287702,146.48,146.4,13.94275123]
[1768416921053,3.271169,146.47,146.37,13.94275123]
[1768416921253,18.13404602,146.47,146.37,13.94275123]
[1768416921455,6.1461,146.45,146.37,13.94275123]
[1768416921763,6.1461,146.45,146.38,13.94275123]
[1768416922773,6.1465,146.44,146.38,13.94275123]
[1768416923465,8.23712084,146.44,146.38,13.94275123]
[1768416924671,16.95349786,146.42,146.35,13.94275123]
[1768416924961,6.1478,146.41,146.35,13.94275123]
[1768416925165,14.86287702,146.42,146.32,13.94275123]
[1768416925364,2.09062084,146.4,146.32,13.94275123]
[1768416926564,14.86287702,146.45,146.35,13.94275123]
[1768416926762,16.95349786,146.45,146.35,13.94275123]
[1768416927267,14.86287702,146.43,146.35,16.03337207]
[1768416927469,16.95349786,146.45,146.35,16.03337207]
[1768416927871,23.09979786,146.45,146.36,13.94275123]
[1768416928070,2.09062084,146.47,146.38,13.94275123]
[1768416928665,14.86287702,146.48,146.39,16.03337207]
[1768416929068,14.86287702,146.48,146.39,13.94275123]
[1768416929267,21.00777702,146.48,146.39,13.94275123]
[1768416931758,6.1453,146.47,146.39,13.94275123]
[1768416931965,16.95349786,146.47,146.39,13.94275123]
[1768416932560,6.1457,146.46,146.39,13.94275123]
[1768416932961,6.1457,146.46,146.39,16.03337207]
[1768416933361,8.23632084,146.46,146.39,13.94275123]
[1768416934170,14.86287702,146.43,146.36,13.94275123]
[1768416934774,2.09062084,146.44,146.36,13.94275123]
[1768416935277,6.1462,146.45,146.37,13.94275123]
[1768416935475,16.95349786,146.46,146.37,13.94275123]
[1768416935775,16.95349786,146.45,146.37,13.94275123]
[1768416937778,6.1469,146.43,146.37,13.94275123]
[1768416938478,23.09979786,146.45,146.37,13.94275123]
[1768416938674,16.95349786,146.43,146.34,13.94275123]
[1768416939175,95.54287702,146.49,146.38,13.94275123]
[1768416939381,14.86287702,146.49,146.4,13.94275123]
[1768416940182,14.86287702,146.49,146.42,13.94275123]
[1768416941081,8.23442084,146.51,146.42,13.94275123]
[1768416941379,23.09729786,146.51,146.42,13.94275123]
[1768416941780,23.09729786,146.51,146.42,20.08995123]
[1768416942184,23.09729786,146.51,146.43,13.94275123]
[1768416942983,16.95349786,146.51,146.44,6.1463]
[1768416943368,16.95349786,146.51,146.44,20.08905123]
[1768416943679,16.95349786,146.51,146.44,13.94275123]
[1768416944182,14.86287702,146.51,146.44,13.94275123]
[1768416944883,14.86287702,146.51,146.44,20.08905123]
[1768416945382,2.09062084,146.52,146.45,6.1458]
[1768416945584,15.90781356,146.54,146.46,13.94275123]
[1768416945978,15.90781356,146.54,146.47,16.03337207]
[1768416946169,15.90781356,146.54,146.49,13.94275123]
[1768416947482,9.97981304,146.54,146.49,16.03337207]
[1768416947685,1.304e-05,146.54,146.49,16.03337207]
[1768416947879,1.304e-05,146.54,146.49,13.94275123]
[1768416948081,1.304e-05,146.54,146.49,16.03337207]
[1768416948284,1.304e-05,146.54,146.5,13.94275123]
[1768416950379,1.304e-05,146.54,146.47,94.82732537]
[1768416950782,1.304e-05,146.54,146.48,14.16732537]
[1768416959581,21.02690914,146.54,146.45,16.25794621]
[1768416959786,16.97511694,146.53,146.45,14.16732537]
[1768416959985,2.09062084,146.51,146.45,14.16732537]
[1768416960190,14.8844961,146.51,146.43,14.16732537]
[1768416960493,2.09062084,146.52,146.43,14.16732537]
[1768416960891,23.11762998,146.54,146.44,2.09062084]
[1768416961089,16.97512998,146.54,146.45,16.25794621]
[1768416961796,16.97512998,146.54,146.47,16.25794621]
[1768416961797,1.304e-05,146.54,146.47,16.25794621]
[1768416962791,1.304e-05,146.54,146.49,20.31162537]
[1768416964292,1.304e-05,146.54,146.49,14.16732537]
[1768416964796,1.304e-05,146.54,146.47,94.80732537]
[1768416964995,1.304e-05,146.54,146.47,14.16732537]
[1768416966890,1.304e-05,146.54,146.49,14.16732537]
[1768416967492,1.304e-05,146.54,146.49,20.31152537]
[1768416973692,1.304e-05,146.54,146.5,14.16732537]
[1768416976002,1.304e-05,146.54,146.5,20.31122537]
[1768416976705,1.304e-05,146.54,146.48,20.31172537]
[1768416976902,1.304e-05,146.54,146.48,14.16732537]
[1768416977407,1.304e-05,146.54,146.5,6.1439]
[1768416978607,1.304e-05,146.54,146.51,20.31062537]
[1768416978803,1.304e-05,146.54,146.51,14.16732537]
[1768416979799,1.304e-05,146.54,146.52,6.143]
[1768416980899,1.304e-05,146.54,146.51,14.16732537]
[1768416982906,1.304e-05,146.54,146.51,20.31072537]
[1768416984406,1.304e-05,146.54,146.51,14.16732537]
[1768416991307,1.304e-05,146.54,146.52,14.78533494]
[1768416995221,1.304e-05,146.54,146.53,14.78533494]
[1768416995412,6.1401,146.6,146.53,14.78533494]
[1768416995612,20.5736056,146.61,146.53,20.92783494]
[1768416996617,20.5739056,146.6,146.53,20.92783494]
[1768416997218,20.5739056,146.6,146.53,14.78533494]
[1768416999718,14.4342056,146.59,146.51,14.78533494]
[1768417000914,20.5748056,146.58,146.51,14.78533494]
[1768417001921,14.4342056,146.57,146.49,14.78533494]
[1768417002524,20.5755056,146.57,146.49,20.92963494]
[1768417002821,14.4342056,146.56,146.47,95.40533494]
[1768417003020,20.5761056,146.55,146.47,101.55043494]
[1768417004423,20.5766056,146.54,146.47,95.40533494]
[1768417005223,20.5766056,146.54,146.48,14.78533494]
[1768417006527,14.4342056,146.54,146.48,14.78533494]
[1768417006822,14.4342056,146.59,146.5,14.78533494]
[1768417007628,14.4342056,146.59,146.51,14.78533494]
[1768417008226,14.4342056,146.59,146.51,20.92873494]
[1768417008921,14.4342056,146.59,146.52,14.78533494]
[1768417009113,14.4342056,146.59,146.52,20.92833494]
[1768417009312,6.1396,146.61,146.53,14.78533494]
[1768417009523,14.4342056,146.62,146.53,14.78533494]
[1768417010627,20.5732056,146.62,146.53,14.78533494]
[1768417011923,20.5732056,146.62,146.54,14.99858869]
[1768417015029,13.75217562,146.61,146.53,6.1425]
[1768417015435,13.75217562,146.6,146.52,14.99858869]
[1768417015831,17.01234365,146.6,146.5,14.99858869]
[1768417016535,19.89277562,146.58,146.5,21.14238869]
[1768417016832,13.75217562,146.57,146.5,21.14238869]
[1768417017233,19.89317562,146.57,146.5,14.99858869]
[1768417017729,13.75217562,146.57,146.5,14.99858869]
[1768417019322,13.75217562,146.59,146.5,14.99858869]
[1768417020533,13.75217562,146.61,146.52,14.99858869]
[1768417021432,13.75217562,146.59,146.52,14.99858869]
[1768417021730,13.75217562,146.62,146.52,14.99858869]
[1768417022124,6.1394,146.61,146.53,14.99858869]
[1768417022341,13.75217562,146.66,146.55,14.99858869]
[1768417022527,13.75217562,146.62,146.55,14.99858869]
[1768417023124,13.75217562,146.61,146.52,14.99858869]
[1768417023323,17.01234365,146.61,146.52,14.99858869]
[1768417023732,6.1403,146.59,146.52,14.99858869]
[1768417023929,19.89247562,146.59,146.52,14.99858869]
[1768417024133,19.89247562,146.59,146.5,14.99858869]
[1768417024134,13.75217562,146.58,146.5,14.99858869]
[1768417024528,13.75217562,146.56,146.46,9.40556803]
[1768417024737,13.75217562,146.56,146.47,14.99858869]
[1768417025938,19.89377562,146.56,146.47,14.99858869]
[1768417028436,6.142,146.55,146.47,14.99858869]
[1768417029343,6.1424,146.54,146.47,14.99858869]
[1768417029639,17.01234365,146.53,146.41,14.99858869]
[1768417029933,13.75217562,146.53,146.44,14.99858869]
[1768417030135,13.75217562,146.56,146.45,14.99858869]
[1768417030333,13.75217562,146.56,146.45,98.87875672]
[1768417030536,13.75217562,146.56,146.46,14.99858869]
[1768417031242,13.75217562,146.56,146.49,14.99858869]
[1768417031442,6.1412,146.57,146.49,14.99858869]
[1768417032340,13.75217562,146.59,146.5,14.99858869]
[1768417033237,17.01234365,146.62,146.51,14.99858869]
[1768417033431,13.75217562,146.62,146.51,14.99858869]
[1768417034848,19.89137562,146.62,146.53,6.1425]
[1768417035043,19.89137562,146.62,146.53,21.14108869]
[1768417036037,19.89137562,146.62,146.5,14.99858869]
[1768417036038,13.75217562,146.59,146.5,14.99858869]
[1768417036935,13.75217562,146.59,146.5,21.14238869]
[1768417037938,13.75217562,146.59,146.51,14.99858869]
[1768417038139,13.75217562,146.59,146.51,21.14198869]
[1768417039738,19.89127562,146.62,146.53,14.99858869]
[1768417040842,19.89127562,146.62,146.54,6.1421]
[1768417041041,13.57716488,146.61,146.53,14.99858869]
[1768417043144,19.71656488,146.61,146.53,14.99858869]
[1768417044742,16.83733291,146.59,146.5,13.80637704]
[1768417045150,13.57716488,146.59,146.5,13.80637704]
[1768417045443,15.6636437,146.59,146.5,13.80637704]
[1768417045643,21.8041437,146.59,146.51,13.80637704]
[1768417045941,2.08647882,146.61,146.53,13.80637704]
[1768417046142,6.1398,146.6,146.53,13.80637704]
[1768417046741,6.1403,146.59,146.53,13.80637704]
[1768417048842,13.57716488,146.58,146.48,13.80637704]
[1768417049046,15.6636437,146.56,146.48,13.80637704]
[1768417050946,6.1419,146.55,146.48,13.80637704]
[1768417051549,6.1423,146.54,146.48,13.80637704]
[1768417052648,6.1423,146.54,146.44,20.28752867]
[1768417052649,15.6636437,146.54,146.45,13.80637704]
[1768417053841,6.1431,146.52,146.45,13.80637704]
[1768417054047,15.6636437,146.54,146.45,13.80637704]
[1768417054746,6.1431,146.52,146.45,13.80637704]
[1768417057043,6.1435,146.51,146.45,13.80637704]
[1768417057245,15.6636437,146.52,146.45,13.80637704]
[1768417057745,21.8070437,146.52,146.45,13.80637704]
[1768417058453,6.1435,146.51,146.45,13.80637704]
[1768417060340,13.57716488,146.55,146.46,13.80637704]
[1768417060541,2.08647882,146.55,146.46,13.80637704]
[1768417060751,15.6636437,146.57,146.48,13.80637704]
[1768417060951,13.57716488,146.57,146.48,13.80637704]
[1768417061153,6.1417,146.56,146.48,13.80637704]
[1768417062448,6.1419,146.55,146.48,13.80637704]
[1768417063452,19.71846488,146.57,146.49,15.89285586]
[1768417064052,6.1414,146.56,146.49,15.89285586]
[1768417064858,6.1419,146.55,146.49,13.80637704]
[1768417067452,6.1424,146.54,146.47,13.80637704]
[1768417070560,6.1424,146.54,146.47,19.95147704]
[1768417070760,6.1424,146.54,146.48,14.81435743]
[1768417071559,6.1428,146.53,146.46,16.90083625]
[1768417072958,6.1428,146.53,146.47,14.81435743]
[1768417073963,14.37492481,146.54,146.47,20.95945743]
[1768417074161,14.37492481,146.54,146.48,14.81435743]
[1768417074364,6.1421,146.55,146.48,14.81435743]
[1768417074559,6.1413,146.57,146.51,14.81435743]
[1768417075162,22.60190363,146.59,146.51,14.81435743]
[1768417076164,6.1406,146.58,146.51,14.81435743]
[1768417077863,16.46140363,146.57,146.48,101.59875743]
[1768417078361,16.46140363,146.57,146.48,20.95875743]
[1768417079467,16.46140363,146.55,146.48,14.81435743]
[1768417080768,6.1424,146.54,146.48,14.81435743]
[1768417081358,16.46140363,146.53,146.43,14.81435743]
[1768417081662,16.46140363,146.51,146.43,14.81435743]
[1768417082768,6.1442,146.5,146.43,14.81435743]
[1768417083863,6.1434,146.52,146.44,14.81435743]
[1768417084762,6.1434,146.52,146.44,20.96065743]
[1768417085767,6.1434,146.52,146.45,14.81435743]
[1768417085968,16.46140363,146.54,146.46,14.81435743]
[1768417086469,8.22957882,146.52,146.46,14.81435743]
[1768417088673,6.1431,146.52,146.46,14.81435743]
[1768417089172,2.08647882,146.53,146.46,14.81435743]
[1768417089972,8.22917882,146.53,146.46,20.95985743]
[1768417090176,2.08647882,146.53,146.47,14.81435743]
[1768417093267,6.1423,146.54,146.47,14.81435743]
[1768417095670,20.51812481,146.52,146.44,20.96035743]
[1768417095883,2.08647882,146.51,146.44,14.81435743]
[1768417096773,8.23017882,146.51,146.44,14.81435743]
[1768417098074,6.1439,146.5,146.44,14.81435743]
[1768417098681,2.08647882,146.47,146.41,14.81435743]
[1768417099181,2.08647882,146.47,146.37,2.08647882]
[1768417099182,14.37492481,146.47,146.4,14.81435743]
[1768417099378,2.08647882,146.49,146.4,14.81435743]
[1768417099974,14.37492481,146.5,146.4,14.81435743]
[1768417100167,14.37492481,146.5,146.41,2.08647882]
[1768417100371,14.43184831,146.53,146.42,14.39870877]
[1768417100567,2.08647882,146.52,146.42,14.39870877]
[1768417100872,2.08647882,146.52,146.42,16.48518759]
[1768417101079,2.08647882,146.52,146.42,14.39870877]
[1768417101280,16.03931934,146.52,146.42,16.48518759]
[1768417101476,13.95284052,146.52,146.42,16.48518759]
[1768417101781,6.1431,146.52,146.45,14.82177912]
[1768417107685,20.09534052,146.54,146.46,14.82177912]
[1768417107889,6.1425,146.54,146.46,14.82177912]
[1768417109091,20.09454052,146.56,146.48,14.82177912]
[1768417110382,6.1419,146.55,146.48,14.82177912]
[1768417114495,97.85566294,146.57,146.48,14.82177912]
[1768417114796,13.95284052,146.56,146.48,14.82177912]
[1768417115893,6.1419,146.55,146.48,14.82177912]
[1768417117090,13.95284052,146.56,146.49,14.82177912]
[1768417117599,20.09424052,146.56,146.49,14.82177912]
[1768417117992,13.95284052,146.56,146.49,14.82177912]